bitfinex/quotes_ETHUSD_20260228
["timestamp","ask_amount","ask_price","bid_price","bid_amount"]
[1772244738835,0.48297178,1929.3,1929.0,0.58675734]
[1772244739039,0.48297178,1929.3,1929.0,0.78992083]
[1772244739236,0.48297178,1929.3,1929.0,2.08589738]
[1772244739544,0.48297178,1929.3,1929.0,0.78992083]
[1772244743751,0.48397178,1929.4,1929.1,0.20316349]
[1772244744268,0.48397178,1929.4,1929.2,0.78992083]
[1772244744269,0.001,1929.4,1929.2,0.78992083]
[1772244744763,0.48397178,1929.4,1929.2,0.58675734]
[1772244749281,0.001,1929.3,1929.2,0.39114727]
[1772244750346,0.48297178,1929.5,1929.2,0.39114727]
[1772244750866,0.48297178,1929.5,1929.2,0.88875016]
[1772244751076,0.48297178,1929.5,1929.2,2.18458328]
[1772244751458,0.48297178,1929.5,1929.3,1.638]
[1772244751984,0.48297178,1929.6,1929.3,2.13560289]
[1772244754383,0.48297178,1929.8,1929.4,0.49760289]
[1772244754573,0.48297178,1929.7,1929.4,0.88875016]
[1772244754774,0.48297178,1929.7,1929.3,1.638]
[1772244754968,0.48297178,1929.7,1929.4,1.639]
[1772244755154,0.48297178,1929.7,1929.2,0.39114727]
[1772244755473,0.48297178,1929.7,1929.3,1.639]
[1772244756657,1.2956053,1929.6,1929.3,1.639]
[1772244756872,0.48297178,1929.5,1929.3,1.639]
[1772244757082,0.48297178,1929.7,1929.4,0.88875016]
[1772244760091,0.48297178,1929.9,1929.5,0.49760289]
[1772244760289,0.48297178,1929.9,1929.6,0.39114727]
[1772244762669,1.77839923,1929.9,1929.6,0.39114727]
[1772244764192,0.48297178,1929.9,1929.6,0.87152266]
[1772244766363,1.29691167,1930.0,1929.7,0.48037539]
[1772244766364,0.47721284,1930.0,1929.7,0.48037539]
[1772244768473,1.77255214,1930.0,1929.7,0.48037539]
[1772244768796,0.00153886,1930.0,1929.8,0.87152266]
[1772244769299,0.00153886,1930.0,1929.9,0.48037539]
[1772244770103,1.29509116,1930.4,1929.9,0.48037539]
[1772244770269,0.47567398,1930.3,1929.9,0.48037539]
[1772244771096,1.77082847,1930.3,1929.9,0.48037539]
[1772244772296,0.47567398,1930.3,1930.0,0.87152266]
[1772244772879,1.77081747,1930.3,1930.0,0.87152266]
[1772244773174,0.47567398,1930.2,1929.8,0.39114727]
[1772244773378,0.002,1930.0,1929.8,0.87152266]
[1772244773580,0.002,1930.0,1929.8,2.03314727]
[1772244776572,0.002,1930.0,1929.8,3.80899059]
[1772244778005,0.002,1930.0,1929.8,2.51352266]
[1772244778572,0.002,1930.0,1929.8,3.80899303]
[1772244779486,0.002,1930.0,1929.8,2.51352266]
[1772244780797,0.002,1930.0,1929.9,1.645]
[1772244780969,0.002,1930.0,1929.8,0.87152266]
[1772244781167,0.47767398,1930.0,1929.9,1.645]
[1772244783299,0.002,1930.0,1929.9,1.645]
[1772244793698,0.48273448,1930.0,1929.8,1.651]
[1772244793890,0.48273448,1930.0,1929.7,1.651]
[1772244794096,0.48273448,1930.0,1929.6,0.39114727]
[1772244794406,0.48273448,1930.0,1929.6,2.04214727]
[1772244800514,0.48073448,1929.9,1929.7,0.001]
[1772244800695,0.48273448,1929.9,1929.7,0.001]
[1772244802087,0.48273448,1929.9,1929.5,0.001]
[1772244802497,1.29547103,1929.8,1929.5,0.001]
[1772244802792,0.48073448,1929.7,1929.5,0.001]
[1772244803616,5.18377644,1929.9,1929.5,0.001]
[1772244803617,1.2974039,1929.9,1929.6,0.45341961]
[1772244803811,0.48073448,1929.8,1929.5,0.84556688]
[1772244805220,1.77813838,1929.9,1929.5,0.84556688]
[1772244807622,1.77813838,1929.9,1929.6,0.45341961]
[1772244810102,0.48073448,1929.8,1929.5,0.001]
[1772244810308,0.48073448,1929.8,1929.3,0.0011]
[1772244810806,0.48073448,1929.7,1929.3,0.0011]
[1772244812722,0.48073448,1929.5,1929.3,0.0011]
[1772244814526,0.48073448,1929.5,1929.4,0.001]
[1772244814895,1.77640693,1929.5,1929.4,0.001]
[1772244815095,0.48073448,1929.4,1929.3,0.0011]
[1772244817333,0.48073448,1929.5,1929.3,0.0011]
[1772244817634,1.77639324,1929.6,1929.3,0.45451961]
[1772244822331,1.77639324,1929.6,1929.3,0.0011]
[1772244824851,1.72639324,1929.6,1929.3,0.0011]
[1772244826544,0.47566394,1929.5,1929.3,0.0011]
[1772244826742,0.47566394,1929.5,1929.4,0.001]
[1772244827046,0.47766394,1929.5,1929.4,0.001]
[1772244828420,1.77333639,1929.5,1929.4,0.001]
[1772244832358,0.002,1929.5,1929.4,0.001]
[1772244834132,1.29767245,1929.5,1929.4,0.001]
[1772244835560,0.002,1929.5,1929.4,0.001]
[1772244838165,0.47766394,1929.5,1929.2,0.49034713]
[1772244838459,0.47766394,1929.5,1929.1,0.0011]
[1772244840769,0.47566394,1929.3,1929.1,0.0011]
[1772244841564,0.47566394,1929.3,1929.2,0.001]
[1772244842762,0.47566394,1929.3,1929.0,0.00263886]
[1772244842763,0.47566394,1929.2,1929.0,0.00263886]
[1772244842940,0.47566394,1929.2,1928.8,0.0011]
[1772244845361,5.65878822,1929.4,1929.0,0.21044101]
[1772244851768,1.77140354,1929.4,1929.0,0.21044101]
[1772244854463,0.001,1929.3,1929.0,0.21044101]
[1772244854873,0.001,1929.3,1929.2,0.21044101]
[1772244856174,0.002,1929.5,1929.2,0.21044101]
[1772244856349,1.29767258,1929.5,1929.2,0.21044101]
[1772244856551,0.002,1929.5,1929.2,0.21044101]
[1772244857440,1.29767995,1929.5,1929.2,0.21044101]
[1772244858150,0.002,1929.5,1929.2,0.21044101]
[1772244860481,0.48425372,1929.5,1929.2,0.21044101]
[1772244864155,1.77997094,1929.5,1929.2,0.21044101]
[1772244866289,0.002,1929.4,1929.2,0.21044101]
[1772244872490,0.002,1929.4,1929.3,0.21044101]
[1772244877923,0.002,1929.4,1929.3,0.21144101]
[1772244879094,0.002,1929.4,1929.3,0.001]
[1772244879673,0.48425372,1929.4,1929.3,0.001]
[1772244883699,1.29768022,1929.5,1929.3,0.001]
[1772244883882,1.7516335,1929.5,1929.3,0.001]
[1772244884498,0.45396058,1929.4,1929.3,0.001]
[1772244885690,1.74970018,1929.4,1929.3,0.001]
[1772244888005,0.002,1929.5,1929.3,0.001]
[1772244888503,0.002,1929.5,1929.3,0.20944101]
[1772244892078,0.002,1929.5,1929.4,0.001]
[1772244898595,0.45396058,1929.4,1929.1,0.001]
[1772244898814,0.45396058,1929.2,1928.9,0.0011]
[1772244898990,0.45396058,1929.0,1928.7,0.0011]
[1772244899198,0.45396058,1929.0,1928.7,0.0022]
[1772244900114,0.45396058,1928.8,1928.7,0.0022]
[1772244900625,5.18357945,1929.2,1928.7,0.21054101]
[1772244900626,1.74986785,1929.2,1928.7,0.21054101]
[1772244900908,1.74986785,1929.2,1928.9,0.20944101]
[1772244901914,1.74986785,1929.2,1928.9,0.21054101]
[1772244901915,0.45396058,1929.2,1928.9,0.21054101]
[1772244902123,1.29583762,1929.3,1929.0,0.60172313]
[1772244902302,1.29583762,1929.3,1929.0,0.60062313]
[1772244902505,1.29583762,1929.3,1929.0,0.20944101]
[1772244902838,1.7497982,1929.3,1929.0,0.20944101]
[1772244904225,1.29583762,1929.3,1929.1,0.21054101]
[1772244904530,1.2957396,1929.4,1929.1,0.20944101]
[1772244904835,1.2957396,1929.4,1929.2,0.0011]
[1772244906225,0.45396058,1929.3,1929.2,0.0011]
[1772244906428,1.74976734,1929.3,1929.2,0.0011]
[1772244906937,0.45396058,1929.2,1928.9,0.001]
[1772244907108,0.45396058,1929.2,1929.0,0.0011]
[1772244908533,0.45396058,1929.1,1929.0,0.0011]
[1772244911838,1.29594102,1929.2,1929.0,0.20944101]
[1772244912038,1.29770546,1929.5,1929.1,0.20944101]
[1772244912247,1.29770546,1929.5,1929.3,0.20944101]
[1772244913560,0.002,1929.5,1929.3,0.20944101]
[1772244913915,0.002,1929.5,1929.2,0.60062313]
[1772244913916,0.47673231,1929.5,1929.2,0.60062313]
[1772244914154,1.77240803,1929.5,1929.2,0.60062313]
[1772244914321,0.47473231,1929.4,1929.0,0.39118212]
[1772244914526,0.47473231,1929.4,1928.9,0.21044101]
[1772244915231,0.47473231,1929.4,1929.0,0.20944101]
[1772244916952,0.002,1929.5,1929.2,0.39118212]
[1772244917158,0.002,1929.5,1929.3,0.20944101]
[1772244925851,0.002,1929.7,1929.5,0.20944101]
[1772244929159,0.47673231,1929.8,1929.5,0.20944101]
[1772244929358,0.002,1929.8,1929.5,0.20944101]
[1772244930667,0.002,1929.8,1929.6,0.20944101]
[1772244931335,0.002,1929.8,1929.4,1.29672782]
[1772244931336,0.002,1929.6,1929.4,1.29672782]
[1772244931535,0.002,1929.6,1929.5,0.20944101]
[1772244934267,0.002,1929.7,1929.5,0.20944101]
[1772244934441,0.002,1929.9,1929.6,0.20744101]
[1772244935863,0.002,1929.9,1929.4,1.2967377]
[1772244935864,0.47673231,1929.9,1929.4,1.2967377]
[1772244936172,0.47673231,1929.9,1929.4,1.638]
[1772244936467,0.47673231,1929.9,1929.4,3.14117632]
[1772244936647,0.47473231,1929.8,1929.5,0.20744101]
[1772244939271,0.47473231,1929.8,1929.4,2.93373531]
[1772244939970,0.47473231,1929.8,1929.4,3.14117632]
[1772244940371,1.77020396,1929.8,1929.4,3.14117632]
[1772244942074,0.47473231,1929.8,1929.4,3.14117632]
[1772244944288,0.47473231,1929.8,1929.5,0.001]
[1772244944451,0.002,1929.7,1929.5,0.001]
[1772244948283,0.49929144,1929.7,1929.4,0.001]
[1772244950206,1.29757637,1929.7,1929.4,0.001]
[1772244950366,0.49729144,1929.6,1929.4,0.001]
[1772244955969,0.49729144,1929.5,1929.3,0.001]
[1772244958079,1.79296389,1929.5,1929.4,0.001]
[1772244961497,1.79296389,1929.5,1929.2,0.001]
[1772244961498,0.49729144,1929.4,1929.2,0.001]
[1772244962198,0.49729144,1929.3,1928.9,0.001]
[1772244962977,0.49729144,1929.1,1928.9,0.001]
[1772244966307,1.79315375,1929.3,1928.9,0.21144101]
[1772244967199,0.49729144,1929.5,1929.1,0.21044101]
[1772244970002,1.2957396,1929.4,1929.1,0.21044101]
[1772244970182,1.79303104,1929.4,1929.1,0.21044101]
[1772244970383,1.79403104,1929.4,1929.1,0.21044101]
[1772244971111,0.48239724,1929.3,1929.0,0.21154101]
[1772244971407,0.48239724,1929.3,1929.0,0.0011]
[1772244972613,0.48239724,1929.2,1929.0,0.0011]
[1772244975698,0.001,1929.4,1929.0,0.21154101]
[1772244976286,1.29674235,1929.4,1929.0,0.21154101]
[1772244976615,0.001,1929.4,1929.0,0.21154101]
[1772244976987,0.001,1929.4,1929.2,0.21044101]
[1772244982325,0.001,1929.4,1929.2,0.21144101]
[1772244982698,0.002,1929.3,1929.2,0.21144101]
[1772244988507,0.002,1929.6,1929.3,0.21044101]
[1772244988905,0.48439724,1929.6,1929.3,0.21044101]
[1772244992539,0.002,1929.6,1929.3,0.21044101]
[1772244993115,0.002,1929.6,1929.4,0.21044101]
[1772244993342,0.002,1929.6,1929.4,1.50615799]
[1772244994307,0.001,1929.5,1929.4,1.50615799]
[1772244994716,0.48439724,1929.7,1929.4,1.50615799]
[1772244995242,0.48439724,1929.7,1929.4,0.21044101]
[1772244997637,0.002,1929.7,1929.4,0.21044101]
[1772244999340,0.002,1929.7,1929.4,1.50617596]
[1772245000534,0.4970844,1929.7,1929.3,1.68690708]
[1772245000840,0.47153086,1929.6,1929.4,1.65]
[1772245001432,0.47153086,1929.6,1929.2,0.001]
[1772245001941,0.47153086,1929.6,1929.2,0.21144101]
[1772245002739,1.76715665,1929.6,1929.2,0.21144101]
[1772245005743,1.76715665,1929.6,1929.3,0.001]
[1772245006043,0.002,1929.5,1929.3,0.001]
[1772245010645,0.002,1929.5,1929.3,0.21144101]
[1772245014344,0.47353086,1929.5,1929.3,0.001]
[1772245018030,0.002,1929.5,1929.4,0.0011]
[1772245018354,0.002,1929.6,1929.4,0.21154101]
[1772245019831,0.002,1929.6,1929.5,0.21044101]
[1772245020429,0.002,1929.7,1929.5,0.21044101]
[1772245021059,0.002,1929.7,1929.5,1.50611094]
[1772245021848,0.002,1929.7,1929.5,3.16411094]
[1772245022339,0.002,1929.7,1929.6,0.21044101]
[1772245022537,0.00153886,1930.0,1929.7,0.21044101]
[1772245022852,0.00153886,1930.0,1929.6,0.39115545]
[1772245022853,1.76663376,1930.4,1929.9,0.21044101]
[1772245023065,0.47153086,1930.3,1930.0,0.21044101]
[1772245023366,0.47153086,1930.6,1930.1,0.21044101]
[1772245024646,0.47153086,1930.5,1929.8,0.60159646]
[1772245024851,0.47153086,1930.5,1929.9,1.658]
[1772245025041,0.47153086,1930.5,1930.0,0.21044101]
[1772245026057,0.47153086,1930.5,1930.1,1.50571068]
[1772245026254,0.47153086,1930.5,1930.2,0.21044101]
[1772245026861,0.47153086,1930.6,1930.3,0.21044101]
[1772245027957,0.47153086,1930.6,1930.1,1.657]
[1772245028148,0.47153086,1930.4,1930.1,1.657]
[1772245030264,0.47153086,1930.4,1930.1,1.658]
[1772245030444,0.47356357,1930.5,1930.2,0.21044101]
[1772245030771,0.47556357,1930.5,1930.2,0.21044101]
[1772245031540,0.002,1930.5,1930.2,0.21044101]
[1772245032968,0.002,1930.5,1930.2,1.50563866]
[1772245033660,0.002,1930.5,1930.2,1.89679411]
[1772245040072,0.47356357,1930.3,1930.0,0.001]
[1772245040576,0.002,1930.5,1930.3,0.21144101]
[1772245042168,0.002,1930.5,1930.3,1.50652607]
[1772245043074,0.47356357,1930.7,1930.3,0.45740721]
[1772245043275,0.47356357,1930.9,1930.4,0.84856266]
[1772245043592,0.47356357,1930.9,1930.5,0.45740721]
[1772245044872,0.002,1930.7,1930.5,0.45740721]
[1772245045463,0.002,1930.7,1930.5,1.75240606]
[1772245046084,0.002,1930.7,1930.5,0.45740721]
[1772245047681,0.002,1930.7,1930.6,0.45740721]
[1772245048380,0.47356357,1930.9,1930.6,0.45740721]
[1772245048580,0.47356357,1930.9,1930.6,0.84856266]
[1772245048785,0.47356357,1930.9,1930.6,2.51456266]
[1772245049464,0.47356357,1930.9,1930.6,2.12340721]
[1772245051282,1.29621004,1931.0,1930.7,0.45740721]
[1772245051283,0.00153886,1931.0,1930.7,0.45740721]
[1772245051792,5.56874863,1931.4,1930.9,0.45740721]
[1772245051793,1.29445112,1931.4,1930.9,0.45740721]
[1772245052096,0.47356357,1931.3,1930.9,0.45740721]
[1772245054204,0.47356357,1931.8,1931.0,0.45740721]
[1772245054422,0.47356357,1931.8,1931.0,2.12440721]
[1772245054902,0.47356357,1931.8,1931.0,1.667]
[1772245055102,0.47356357,1931.8,1931.1,0.45740721]
[1772245056286,0.47356357,1931.6,1931.1,0.45740721]
[1772245056905,0.47356357,1931.6,1931.1,1.75200217]
[1772245057370,0.47356357,1931.6,1931.0,0.45740721]
[1772245057577,0.47356357,1931.6,1930.8,3.41918632]
[1772245057777,0.47356357,1931.6,1930.8,2.12440721]
[1772245058097,0.47356357,1931.6,1930.8,3.41920282]
[1772245058304,0.47356357,1931.4,1930.8,3.41920282]
[1772245060510,0.47669247,1931.2,1930.9,0.45285872]
[1772245061291,0.47669247,1931.2,1930.7,3.45508304]
[1772245061604,0.47669247,1931.2,1930.7,2.96283408]
[1772245061810,0.47669247,1931.2,1930.7,3.45508304]
[1772245063512,0.45952609,1931.1,1930.7,3.45508304]
[1772245065383,0.45952609,1931.1,1930.6,5.1796132]
[1772245065384,0.45952609,1931.1,1930.6,2.16124896]
[1772245065695,0.45952609,1930.9,1930.6,3.45618173]
[1772245068216,0.45952609,1930.9,1930.7,0.001]
[1772245068785,1.75417587,1931.1,1930.7,0.49324896]
[1772245069810,0.45952609,1931.0,1930.7,0.49324896]
[1772245072816,0.45952609,1930.9,1930.7,0.001]
[1772245075115,0.45952609,1930.8,1930.7,0.001]
[1772245078129,0.45952609,1931.2,1930.7,0.49324896]
[1772245083128,1.75412502,1931.1,1930.8,0.001]
[1772245083305,1.75612502,1931.1,1930.8,0.001]
[1772245083823,0.45952609,1931.0,1930.8,0.001]
[1772245085909,0.45952609,1930.9,1930.8,0.001]
[1772245086430,0.45952609,1931.0,1930.8,0.001]
[1772245086626,1.75419779,1931.0,1930.8,0.001]
[1772245087708,0.45952609,1930.9,1930.5,0.49324896]
[1772245088020,0.45952609,1930.9,1930.5,2.16324896]
[1772245088330,0.45952609,1930.8,1930.5,2.16324896]
[1772245090729,0.45952609,1930.8,1930.5,3.45824103]
[1772245091234,0.45952609,1930.8,1930.5,2.16324896]
[1772245092326,0.45133875,1930.9,1930.6,0.47435369]
[1772245092712,1.74607486,1930.9,1930.6,0.47435369]
[1772245094837,1.74607486,1930.9,1930.5,1.671]
[1772245094838,0.45133875,1930.8,1930.5,1.671]
[1772245095014,0.45133875,1930.8,1930.5,2.14535369]
[1772245097544,0.45133875,1930.7,1930.5,0.001]
[1772245099652,0.45133875,1930.5,1930.3,0.001]
[1772245101742,1.74640712,1930.4,1930.3,0.001]
[1772245103246,0.45133875,1930.6,1930.3,0.001]
[1772245103455,0.45133875,1930.6,1930.3,0.47535369]
[1772245104551,1.7462824,1930.6,1930.3,0.47535369]
[1772245105850,0.45133875,1930.5,1930.3,0.001]
[1772245106854,1.74635655,1930.5,1930.3,0.001]
[1772245107732,0.45133875,1930.4,1930.1,0.001]
[1772245109556,1.74641256,1930.4,1930.1,0.001]
[1772245109756,0.45133875,1930.4,1930.1,0.47535369]
[1772245109928,0.45133875,1930.5,1930.1,0.47535369]
[1772245112054,1.74637331,1930.5,1930.2,0.001]
[1772245112949,1.29503456,1930.5,1930.2,0.47535369]
[1772245113438,1.74637331,1930.5,1930.2,0.47535369]
[1772245113954,1.74637331,1930.5,1930.2,0.001]
[1772245113955,0.45133875,1930.4,1930.2,0.001]
[1772245114161,0.45133875,1930.3,1930.2,0.001]
[1772245115272,1.29506837,1930.4,1930.2,0.001]
[1772245115273,1.74640712,1930.4,1930.2,0.001]
[1772245117335,1.29506837,1930.4,1930.2,0.47535369]
[1772245120172,0.002,1930.6,1930.4,0.47435369]
[1772245120762,0.002,1930.6,1930.3,0.49047665]
[1772245124569,0.002,1930.6,1930.3,2.16047665]
[1772245124734,0.002,1930.6,1930.4,0.49047665]
[1772245125862,0.002,1930.5,1930.4,0.49047665]
[1772245126365,0.002,1930.7,1930.5,0.49047665]
[1772245126566,0.002,1930.7,1930.6,0.49047665]
[1772245129571,0.002,1930.7,1930.5,0.88129559]
[1772245129863,0.46142645,1930.7,1930.3,0.88229559]
[1772245130048,0.46142645,1930.7,1930.5,1.672]
[1772245131444,0.002,1930.7,1930.5,2.16247665]
[1772245133459,0.002,1930.9,1930.7,0.49047665]
[1772245133766,0.002,1930.9,1930.7,0.88129559]
[1772245134972,0.002,1930.9,1930.7,0.49047665]
[1772245135167,0.46142645,1930.9,1930.4,1.29502243]
[1772245135371,0.46142645,1930.9,1930.6,1.675]
[1772245136060,0.45942645,1930.8,1930.6,1.675]
[1772245137947,0.002,1930.7,1930.6,1.675]
[1772245138950,0.002,1930.7,1930.5,3.4614657]
[1772245139269,0.46142645,1930.7,1930.5,1.676]
[1772245140978,0.45942645,1930.6,1930.3,0.88229559]
[1772245141184,0.45942645,1930.6,1930.3,0.001]
[1772245141185,0.45942645,1930.5,1930.3,0.001]
[1772245141380,0.45942645,1930.5,1930.2,0.001]
[1772245142963,0.45942645,1930.5,1930.2,0.49147665]
[1772245144685,1.75443107,1930.5,1930.2,0.49147665]
[1772245144983,0.45942645,1930.4,1930.2,0.001]
[1772245146285,1.75439998,1930.6,1930.2,0.49147665]
[1772245146581,0.45942645,1930.5,1930.2,0.49147665]
[1772245149785,0.45942645,1930.5,1930.3,0.001]
[1772245150356,0.002,1930.6,1930.5,0.47900574]
[1772245152580,0.002,1930.6,1930.4,2.15900574]
[1772245152762,0.47384863,1930.6,1930.3,1.681]
[1772245156989,0.002,1930.6,1930.3,2.16000574]
[1772245157665,0.47384863,1930.6,1930.3,2.16000574]
[1772245160391,0.002,1930.6,1930.4,0.47900574]
[1772245162100,0.002,1930.5,1930.4,0.47900574]
[1772245162667,0.002,1930.5,1930.3,0.39181894]
[1772245162668,0.47384863,1930.5,1930.3,0.001]
[1772245163581,0.002,1930.5,1930.3,0.48000574]
[1772245163801,0.002,1930.6,1930.4,0.47900574]
[1772245164490,0.002,1930.6,1930.4,1.77407297]
[1772245164972,0.002,1930.6,1930.4,3.46007297]
[1772245165569,0.002,1930.7,1930.6,0.47900574]
[1772245169985,0.002,1930.7,1930.5,0.47900574]
[1772245171304,0.002,1930.7,1930.4,1.29501496]
[1772245171598,0.002,1930.7,1930.5,1.69]
[1772245173217,0.002,1930.7,1930.5,2.16900574]
[1772245174305,0.002,1930.6,1930.5,2.16900574]
[1772245180606,0.002,1930.7,1930.5,2.98500129]
[1772245180814,0.002,1930.7,1930.6,0.45345765]
[1772245183892,0.47410914,1930.7,1930.5,1.699]
[1772245185920,0.47210914,1930.6,1930.4,0.001]
[1772245186290,0.47410914,1930.6,1930.4,0.001]
[1772245186514,0.47410914,1930.6,1930.5,0.001]
[1772245191495,0.42410914,1930.6,1930.5,0.001]
[1772245191692,1.71904335,1930.6,1930.5,0.001]
[1772245191897,1.71904335,1930.6,1930.5,0.45445765]
[1772245191898,0.002,1930.6,1930.5,0.45445765]
[1772245192199,0.002,1930.6,1930.5,0.001]
[1772245192523,0.47410914,1930.6,1930.5,0.001]
[1772245199528,1.76904335,1930.6,1930.5,0.001]
[1772245199734,0.47410914,1930.6,1930.5,0.001]
[1772245202804,0.47410914,1930.6,1930.4,0.001]
[1772245202805,0.47210914,1930.5,1930.4,0.001]
[1772245203934,1.76904335,1930.6,1930.4,0.001]
[1772245206542,1.29693421,1930.6,1930.4,0.001]
[1772245207644,0.002,1930.6,1930.4,0.001]
[1772245210148,1.29693421,1930.6,1930.5,0.001]
[1772245210626,1.29693421,1930.6,1930.5,0.47788913]
[1772245210828,0.002,1930.7,1930.5,0.47788913]
[1772245213128,0.002,1930.7,1930.6,0.47688913]
[1772245216127,0.002,1930.8,1930.6,0.47688913]
[1772245216128,0.002,1930.9,1930.7,0.47688913]
[1772245218273,0.002,1930.9,1930.7,1.77175597]
[1772245218855,0.002,1930.9,1930.7,0.47688913]
[1772245219162,0.002,1930.9,1930.8,0.47688913]
[1772245223375,0.002,1930.9,1930.8,0.47788913]
[1772245225157,0.002,1930.9,1930.8,1.77268921]
[1772245227086,0.002,1931.1,1930.9,0.47688913]
[1772245229287,0.48024875,1931.1,1930.8,0.001]
[1772245229498,0.48024875,1931.1,1930.8,1.708]
[1772245230893,0.48024875,1931.1,1930.8,3.47966639]
[1772245231207,0.002,1931.1,1930.9,0.47688913]
[1772245232006,0.48024875,1931.1,1930.8,1.708]
[1772245235899,0.48024875,1931.1,1930.9,0.001]
[1772245236100,0.002,1931.0,1930.9,0.001]
[1772245240402,0.46739179,1931.0,1930.9,0.001]
[1772245241103,0.002,1931.0,1930.9,0.001]
[1772245241303,0.002,1931.0,1930.9,0.47462348]
[1772245243519,0.002,1931.0,1930.9,1.7693565]
[1772245243811,0.002,1931.1,1931.0,0.47362348]
[1772245248019,0.002,1931.1,1930.9,1.29573302]
[1772245248020,0.49574255,1931.1,1930.9,1.29573302]
[1772245248216,0.49574255,1931.1,1930.9,0.001]
[1772245249084,0.49574255,1931.0,1930.9,0.001]
[1772245253523,0.002,1931.0,1930.9,0.001]
[1772245253730,1.78812544,1931.5,1930.9,0.47462348]
[1772245254020,5.17720454,1931.6,1931.1,0.47362348]
[1772245254021,0.49374255,1931.4,1931.1,0.47362348]
[1772245256497,0.49374255,1931.4,1931.1,1.76821447]
[1772245257031,0.49374255,1931.4,1931.1,0.47362348]
[1772245257326,0.49374255,1931.4,1931.1,1.76822011]
[1772245257526,0.47767879,1931.5,1931.2,0.46688748]
[1772245258103,0.47767879,1931.6,1931.1,1.29459663]
[1772245258296,0.47767879,1931.6,1931.1,1.717]
[1772245260511,0.47767879,1931.4,1931.1,1.717]
[1772245261937,0.47767879,1931.6,1931.3,0.46688748]
[1772245262241,0.002,1931.4,1931.3,0.46688748]
[1772245262403,0.002,1931.4,1931.3,1.76135234]
[1772245263030,0.47967879,1931.6,1931.2,2.15187514]
[1772245263213,0.47767879,1931.5,1931.2,3.40303978]
[1772245264030,0.47767879,1931.5,1931.2,2.10850943]
[1772245264415,0.47767879,1931.5,1931.2,3.86992714]
[1772245264814,0.47767879,1931.4,1931.2,1.719]
[1772245266820,1.29632121,1931.6,1931.2,1.719]
[1772245266821,0.47767879,1931.5,1931.2,3.48041453]
[1772245267310,0.47967879,1931.6,1931.3,0.46688748]
[1772245267639,0.002,1931.6,1931.4,0.85739691]
[1772245267838,1.29411771,1931.9,1931.5,0.46688748]
[1772245268008,1.29411771,1931.9,1931.4,0.39050943]
[1772245268009,0.47921765,1932.0,1931.7,0.46688748]
[1772245268327,0.47921765,1932.0,1931.6,2.11050943]
[1772245268328,0.47767879,1931.9,1931.6,1.721]
[1772245270136,0.47767879,1931.9,1931.6,3.01523256]
[1772245270362,0.00153886,1932.0,1931.8,0.87644715]
[1772245270535,0.00153886,1932.0,1931.9,0.48593772]
[1772245271110,0.48152745,1932.5,1931.9,0.48593772]
[1772245271413,0.48152745,1932.5,1932.1,0.48593772]
[1772245271810,0.48152745,1932.5,1932.1,0.87644715]
[1772245272309,0.48152745,1932.7,1932.2,0.48593772]
[1772245272513,0.48152745,1932.7,1932.3,0.87644715]
[1772245273225,1.77505578,1932.7,1932.3,0.87644715]
[1772245273545,1.77505578,1932.7,1932.4,0.48593772]
[1772245275409,0.002,1932.5,1932.4,0.48593772]
[1772245275810,0.002,1932.7,1932.4,0.48593772]
[1772245276826,0.002,1932.7,1932.5,0.48593772]
[1772245278637,0.48152745,1932.6,1931.9,0.48593772]
[1772245278819,0.48152745,1932.4,1931.9,0.48593772]
[1772245279235,0.48152745,1932.4,1931.6,0.48593772]
[1772245279542,0.48152745,1932.4,1931.7,1.719]
[1772245279750,0.48152745,1932.4,1931.7,2.59544715]
[1772245280451,0.48152745,1932.0,1931.3,1.78136823]
[1772245280648,1.77559028,1931.9,1931.4,0.48593772]
[1772245280947,0.48152745,1931.8,1931.4,0.48593772]
[1772245281113,0.48152745,1931.8,1931.3,2.11050943]
[1772245281718,1.29406283,1931.9,1931.4,0.48593772]
[1772245281930,1.29406283,1931.9,1931.5,0.87644715]
[1772245282835,0.48152745,1931.9,1931.5,2.17075561]
[1772245283040,0.48152745,1931.9,1931.6,0.48593772]
[1772245284026,0.48152745,1931.9,1931.4,0.87644715]
[1772245284229,0.48152745,1931.9,1931.5,0.48593772]
[1772245285342,0.48152745,1931.7,1931.3,1.719]
[1772245285955,0.48152745,1931.7,1931.3,2.20493772]
[1772245287238,1.77575304,1931.7,1931.3,2.20493772]
[1772245288049,1.77575304,1931.7,1931.5,0.001]
[1772245288469,0.48152745,1931.8,1931.5,0.48693772]
[1772245288954,0.48152745,1931.8,1931.5,0.001]
[1772245289147,0.48152745,1931.8,1931.5,1.718]
[1772245289349,1.77572427,1931.7,1931.5,0.001]
[1772245290893,0.48152745,1931.7,1931.5,0.001]
[1772245291348,0.48152745,1931.9,1931.5,0.001]
[1772245293758,0.48152745,1931.7,1931.5,0.001]
[1772245299338,1.77577265,1931.7,1931.5,0.001]
[1772245300169,1.2942452,1931.7,1931.5,0.48693772]
[1772245301363,0.46409017,1932.1,1931.6,0.58539101]
[1772245301562,0.46409017,1932.1,1931.7,0.48946099]
[1772245301970,0.46409017,1932.1,1931.6,1.714]
[1772245302265,0.46409017,1932.1,1931.5,0.49046099]
[1772245302453,0.46409017,1932.0,1931.5,0.001]
[1772245302859,0.002,1931.6,1931.5,0.001]
[1772245311072,0.002,1931.6,1931.5,0.49046099]
[1772245312179,0.0587884,1931.6,1931.5,0.49046099]
[1772245312472,1.29619931,1931.7,1931.5,0.49046099]
[1772245313058,0.002,1931.7,1931.5,0.49046099]
[1772245315161,1.29619682,1931.7,1931.5,0.49046099]
[1772245315361,0.46409017,1931.6,1931.5,1.715]
[1772245316882,0.46609017,1931.6,1931.5,1.715]
[1772245319184,0.002,1931.6,1931.5,1.715]
[1772245321688,0.002,1931.6,1931.3,0.001]
[1772245321885,0.46609017,1931.6,1931.3,0.001]
[1772245323583,0.46609017,1931.6,1931.2,0.001]
[1772245323786,0.46409017,1931.4,1931.2,0.001]
[1772245325786,1.29446486,1931.3,1931.2,0.001]
[1772245325959,1.75855503,1931.3,1931.2,0.001]
[1772245330093,1.76055503,1931.3,1931.2,0.001]
[1772245331489,1.29646486,1931.3,1931.2,0.001]